bitfinex/quotes_BTCUSD_20211001
["timestamp","ask_amount","ask_price","bid_price","bid_amount"]
[1633100183562,0.08063509,47123.0,47122.0,2.468483]
[1633100184162,0.0008,47125.0,47124.0,2.35]
[1633100184365,0.0008,47125.0,47123.0,0.21867791]
[1633100184366,0.0008,47127.0,47125.0,2.768683]
[1633100184564,0.0008,47127.0,47122.0,0.43349295]
[1633100184565,0.0008,47127.0,47126.0,2.668483]
[1633100184766,0.0008,47127.0,47126.0,0.218483]
[1633100184967,0.0008,47127.0,47126.0,0.00124146]
[1633100185166,0.0004,47127.0,47126.0,0.33124146]
[1633100185369,7.62e-06,47133.0,47127.0,0.07687619]
[1633100185564,0.0006,47134.0,47133.0,0.00128138]
[1633100185565,0.00020762,47134.0,47133.0,0.00128138]
[1633100185767,0.00020762,47134.0,47133.0,2.49461345]
[1633100185965,0.00020762,47134.0,47133.0,2.49586243]
[1633100186162,0.00020762,47134.0,47133.0,2.23022076]
[1633100186468,0.0008,47146.0,47143.0,0.0002]
[1633100186665,0.48550156,47151.0,47144.0,0.6]
[1633100186667,0.0096,47149.0,47144.0,0.6]
[1633100186863,0.0096,47149.0,47145.0,0.218483]
[1633100187266,0.0096,47149.0,47143.0,0.0002]
[1633100187268,0.0096,47149.0,47143.0,0.27783392]
[1633100187269,0.00030302,47146.0,47143.0,0.27783392]
[1633100187469,0.00490302,47149.0,47145.0,0.00126827]
[1633100187667,0.00490302,47149.0,47139.0,0.00121967]
[1633100187668,0.04676877,47146.0,47139.0,0.00121967]
[1633100187867,0.50490302,47149.0,47134.0,0.037]
[1633100187868,0.46730244,47145.0,47134.0,0.037]
[1633100188169,0.46730244,47145.0,47139.0,1.83093471]
[1633100188171,0.0012071,47140.0,47139.0,1.83093471]
[1633100188367,0.20475044,47144.0,47139.0,0.218483]
[1633100188569,0.00543312,47149.0,47143.0,0.21543308]
[1633100188570,0.028,47145.0,47143.0,0.21543308]
[1633100188770,0.028,47145.0,47144.0,0.218483]
[1633100189167,0.028,47145.0,47144.0,0.20589931]
[1633100189367,0.028,47145.0,47141.0,0.212118]
[1633100189369,0.12553721,47145.0,47141.0,0.212118]
[1633100189572,0.19079081,47144.0,47141.0,0.212118]
[1633100189768,0.19079081,47144.0,47139.0,6.062e-05]
[1633100189769,0.1919972,47144.0,47139.0,6.062e-05]
[1633100189972,0.19079081,47144.0,47139.0,6.062e-05]
[1633100190368,0.19079081,47144.0,47134.0,0.212136]
[1633100190571,0.19079081,47144.0,47113.0,0.242118]
[1633100190572,0.19079081,47144.0,47139.0,0.019]
[1633100190573,0.00121319,47140.0,47139.0,0.019]
[1633100190773,0.23838319,47140.0,47139.0,0.019]
[1633100190969,0.23838319,47140.0,47125.0,0.09957143]
[1633100190970,0.23838319,47140.0,47128.0,0.212175]
[1633100190971,0.22531087,47140.0,47128.0,0.212175]
[1633100191170,0.22531087,47140.0,47129.0,0.21837]
[1633100191171,0.04580587,47139.0,47129.0,0.21837]
[1633100191371,0.0005301,47138.0,47129.0,0.21837]
[1633100191771,0.0005301,47138.0,47137.0,0.72946655]
[1633100191968,0.19248475,47138.0,47128.0,0.212175]
[1633100192170,0.19248475,47138.0,47131.0,0.318233]
[1633100192370,0.19301485,47138.0,47132.0,0.21837]
[1633100192767,0.22301485,47138.0,47132.0,0.21837]
[1633100192967,0.22301485,47138.0,47135.0,0.22015687]
[1633100193166,0.22301485,47138.0,47133.0,0.08023677]
[1633100193371,0.22301485,47138.0,47131.0,0.318233]
[1633100193568,9.721e-05,47137.0,47131.0,0.318233]
[1633100193770,0.00062731,47137.0,47131.0,0.318233]
[1633100193971,9.721e-05,47137.0,47131.0,0.2121348]
[1633100194173,9.721e-05,47137.0,47134.0,0.1803808]
[1633100194376,9.721e-05,47137.0,47135.0,0.21837]
[1633100194572,9.721e-05,47137.0,47128.0,0.212175]
[1633100194574,0.0005301,47136.0,47128.0,0.212175]
[1633100194778,9.721e-05,47137.0,47131.0,0.031]
[1633100194976,9.721e-05,47137.0,47135.0,0.08135815]
[1633100195175,9.721e-05,47137.0,47136.0,0.21837]
[1633100196175,9.721e-05,47137.0,47136.0,0.31372435]
[1633100196373,9.721e-05,47137.0,47136.0,0.21837]
[1633100196773,0.04309721,47137.0,47136.0,0.21837]
[1633100197975,9.721e-05,47137.0,47136.0,0.21837]
[1633100198375,9.721e-05,47137.0,47136.0,0.215022]
[1633100198776,0.02909721,47137.0,47136.0,0.241022]
[1633100199182,0.02909721,47137.0,47136.0,0.78495345]
[1633100199375,0.02909721,47137.0,47136.0,3.35375345]
[1633100199775,0.02909721,47137.0,47136.0,3.13055345]
[1633100200178,0.02909721,47137.0,47136.0,3.34167849]
[1633100200179,9.721e-05,47137.0,47136.0,3.34167849]
[1633100200840,9.721e-05,47137.0,47136.0,3.38267849]
[1633100201177,9.721e-05,47137.0,47136.0,0.83267849]
[1633100201375,9.721e-05,47137.0,47136.0,1.28267849]
[1633100201580,9.721e-05,47137.0,47136.0,0.83267849]
[1633100201979,9.721e-05,47137.0,47136.0,0.81387849]
[1633100202175,9.721e-05,47137.0,47136.0,0.77287849]
[1633100202580,9.721e-05,47137.0,47136.0,0.53575345]
[1633100202780,9.721e-05,47137.0,47136.0,0.254022]
[1633100202980,0.04331692,47139.0,47136.0,0.254022]
[1633100203178,0.35161368,47141.0,47136.0,0.039]
[1633100203179,0.00129528,47137.0,47136.0,0.039]
[1633100203978,0.00129528,47137.0,47134.0,0.212147]
[1633100203979,0.03913196,47137.0,47134.0,0.212147]
[1633100204182,0.00129528,47137.0,47134.0,0.212147]
[1633100204580,0.00129528,47137.0,47124.0,0.736]
[1633100204582,0.008551,47134.0,47124.0,0.736]
[1633100204780,0.00126699,47127.0,47124.0,0.736]
[1633100204981,0.00126699,47127.0,47123.0,1.23166308]
[1633100204982,0.008551,47134.0,47125.0,0.218388]
[1633100204983,0.212207,47131.0,47125.0,0.218388]
[1633100205182,0.212207,47131.0,47121.0,1.0874]
[1633100205183,0.212207,47131.0,47127.0,0.212189]
[1633100205383,0.212207,47131.0,47119.0,0.21218]
[1633100205386,0.07349196,47125.0,47119.0,0.21218]
[1633100205584,0.00122934,47128.0,47120.0,0.218388]
[1633100205585,0.04853,47127.0,47120.0,0.218388]
[1633100205785,0.40014015,47131.0,47124.0,0.00018189]
[1633100205787,0.25843015,47131.0,47124.0,0.00018189]
[1633100205983,0.008551,47134.0,47127.0,0.0012744]
[1633100206185,0.0005301,47133.0,47131.0,0.318245]
[1633100206383,0.03992248,47133.0,47123.0,0.424364]
[1633100206583,0.03992248,47133.0,47128.0,0.0829231]
[1633100206786,0.0005301,47133.0,47131.0,0.032]
[1633100206984,0.04948649,47133.0,47131.0,0.032]
[1633100207188,0.03976855,47132.0,47131.0,0.032]
[1633100207386,0.03976855,47132.0,47131.0,0.03068674]
[1633100207387,0.19583692,47132.0,47131.0,0.03068674]
[1633100207584,0.0090811,47134.0,47131.0,0.03078373]
[1633100207585,0.03359361,47133.0,47131.0,0.03078373]
[1633100207786,0.19357125,47132.0,47131.0,0.03078373]
[1633100207984,0.03441333,47133.0,47132.0,8.486e-05]
[1633100208188,0.03767261,47132.0,47131.0,0.03068674]
[1633100208385,0.03767261,47132.0,47128.0,0.0829231]
[1633100208386,0.23506353,47132.0,47128.0,0.0829231]
[1633100208585,0.23506353,47132.0,47127.0,0.21216]
[1633100208788,0.26206353,47132.0,47131.0,0.025]
[1633100208988,0.06467261,47132.0,47131.0,0.025]
[1633100210187,0.03767261,47132.0,47127.0,0.21216]
[1633100210789,0.212176,47136.0,47128.0,0.8]
[1633100210790,0.15892971,47136.0,47128.0,0.8]
[1633100210987,0.15892971,47136.0,47127.0,0.25116]
[1633100210988,0.15892971,47136.0,47132.0,0.037]
[1633100211192,0.00125426,47133.0,47132.0,0.037]
[1633100211388,0.21964226,47133.0,47132.0,0.037]
[1633100211788,0.00125426,47133.0,47132.0,0.037]
[1633100212590,0.04625287,47134.0,47132.0,0.037]
[1633100212863,0.15892971,47136.0,47133.0,0.12123971]
[1633100212992,0.15892971,47136.0,47132.0,0.02]
[1633100213395,0.15892971,47136.0,47133.0,0.318244]
[1633100213992,0.15892971,47136.0,47133.0,0.3081883]
[1633100214797,8.659e-05,47135.0,47133.0,0.3361883]
[1633100214994,0.17192971,47136.0,47134.0,0.218388]
[1633100214995,0.1350163,47136.0,47134.0,0.218388]
[1633100216198,0.013,47136.0,47134.0,0.218388]
[1633100216796,0.019,47136.0,47134.0,0.242388]
[1633100216998,0.00126597,47135.0,47134.0,0.242388]
[1633100217194,0.00126597,47135.0,47134.0,0.239948]
[1633100217996,0.00126597,47135.0,47134.0,0.215948]
[1633100218194,0.00126597,47135.0,47132.0,0.21216]
[1633100218397,0.00126597,47135.0,47133.0,0.5371681]
[1633100218598,0.2232,47134.0,47133.0,0.218396]
[1633100218797,0.46282544,47134.0,47132.0,0.039]
[1633100219000,0.43655846,47133.0,47132.0,0.039]
[1633100219199,0.74409169,47133.0,47132.0,0.039]
[1633100219404,0.74282586,47133.0,47132.0,0.039]
[1633100219597,0.74282586,47133.0,47117.0,0.30392115]
[1633100219598,0.09999407,47123.0,47117.0,0.30392115]
[1633100219799,0.09999407,47123.0,47117.0,0.24517004]
[1633100219800,0.22796555,47122.0,47117.0,0.24517004]
[1633100219999,0.00128995,47123.0,47122.0,0.00010914]
[1633100220198,0.43674595,47123.0,47122.0,0.00010914]
[1633100220396,0.31357013,47130.0,47122.0,0.00010914]
[1633100220595,0.0188,47132.0,47122.0,0.00010914]
[1633100220800,0.0188,47132.0,47126.0,6.063e-05]
[1633100220999,0.218396,47131.0,47126.0,6.063e-05]
[1633100221198,0.0188,47132.0,47127.0,0.19246428]
[1633100221596,0.51318457,47134.0,47127.0,0.19246428]
[1633100221870,0.212201,47130.0,47127.0,0.19246428]
[1633100222696,0.212201,47130.0,47126.0,6.063e-05]
[1633100222997,0.212201,47130.0,47127.0,0.026]
[1633100222999,0.229201,47130.0,47127.0,0.026]
[1633100224199,0.229201,47130.0,47126.0,0.21372619]
[1633100224200,0.212201,47130.0,47126.0,0.21372619]
[1633100224869,0.212201,47130.0,47126.0,0.24972619]
[1633100225002,0.212201,47130.0,47129.0,0.00127634]
[1633100226799,0.212201,47130.0,47129.0,0.04127634]
[1633100227870,0.212201,47130.0,47129.0,0.00127634]
[1633100228800,0.212201,47130.0,47129.0,0.04227634]
[1633100230406,0.212201,47130.0,47126.0,0.53198619]
[1633100230869,0.212201,47130.0,47129.0,0.04]
[1633100232202,0.212201,47130.0,47127.0,0.318269]
[1633100232408,0.212201,47130.0,47128.0,0.218396]
[1633100233005,0.212201,47130.0,47128.0,0.260396]
[1633100233606,0.212201,47130.0,47129.0,0.00122787]
[1633100233872,0.212201,47130.0,47129.0,0.21962387]
[1633100234409,0.212201,47130.0,47127.0,0.318269]
[1633100234810,0.212201,47130.0,47128.0,0.218396]
[1633100235007,0.212201,47130.0,47127.0,0.358269]
[1633100235609,0.212201,47130.0,47128.0,0.218396]
[1633100235806,7.253e-05,47129.0,47128.0,0.218396]
[1633100236407,7.253e-05,47129.0,47128.0,2.768396]
[1633100236408,1.253e-05,47129.0,47128.0,2.768396]
[1633100236606,1.253e-05,47129.0,47128.0,0.21965136]
[1633100237007,1.253e-05,47129.0,47128.0,0.25965136]
[1633100238207,1.253e-05,47129.0,47128.0,0.21965136]
[1633100238409,0.212201,47130.0,47128.0,0.21965136]
[1633100238410,0.212201,47130.0,47129.0,4.747e-05]
[1633100238610,0.212201,47130.0,47129.0,0.21844347]
[1633100239011,0.212201,47130.0,47129.0,0.25544347]
[1633100240210,0.212201,47130.0,47129.0,0.21844347]
[1633100241014,1.31695074,47146.0,47132.0,0.212201]
[1633100241214,0.14847098,47148.0,47145.0,0.00123991]
[1633100241414,0.14847098,47148.0,47139.0,0.33488574]
[1633100241416,0.14847098,47148.0,47147.0,2.55121971]
[1633100241616,0.14847098,47148.0,47147.0,2.77014581]
[1633100241813,0.0006,47150.0,47147.0,0.40895801]
[1633100242013,0.0006,47150.0,47148.0,0.318126]
[1633100242211,0.0006,47150.0,47148.0,0.536522]
[1633100242411,0.0006,47150.0,47148.0,0.53782112]
[1633100242412,0.00509694,47149.0,47148.0,0.53782112]
[1633100243011,0.00509694,47149.0,47148.0,0.56982112]
[1633100243815,0.00509694,47149.0,47148.0,0.250396]
[1633100243818,0.00637996,47149.0,47148.0,0.250396]
[1633100244012,0.00637996,47149.0,47148.0,0.032]
[1633100244212,0.00637996,47149.0,47142.0,0.318163]
[1633100244512,0.00618604,47149.0,47142.0,0.318163]
[1633100244711,0.00618604,47149.0,47146.0,0.20103648]
[1633100245112,0.00016968,47147.0,47146.0,0.20103648]
[1633100245315,0.00016968,47147.0,47146.0,0.41943248]
[1633100245317,0.21223768,47147.0,47146.0,0.41943248]
[1633100245716,0.21223768,47147.0,47146.0,0.218396]
[1633100245912,0.21223768,47147.0,47143.0,0.0005301]
[1633100245913,0.16223768,47147.0,47143.0,0.0005301]
[1633100246113,0.16223768,47147.0,47142.0,0.039]
[1633100246316,0.00013333,47144.0,47142.0,0.039]
[1633100246518,0.16214948,47147.0,47143.0,1.668396]
[1633100246714,0.16214948,47147.0,47146.0,1.96967612]
[1633100246915,0.16214948,47147.0,47146.0,2.13976746]
[1633100247113,0.16214948,47147.0,47146.0,0.38976746]
[1633100247316,8.148e-05,47147.0,47146.0,0.39029756]
[1633100247715,8.148e-05,47147.0,47146.0,0.72565287]
[1633100249114,0.01375519,47152.0,47147.0,1.518396]
[1633100249315,0.01375519,47152.0,47151.0,0.50129268]
[1633100249517,0.01375519,47152.0,47151.0,0.40237185]
[1633100250416,0.01375519,47152.0,47151.0,0.40109585]
[1633100251017,0.01375519,47152.0,47151.0,0.43309585]
[1633100251216,0.01375519,47152.0,47151.0,0.75117685]
[1633100252418,0.01375519,47152.0,47151.0,0.75108321]
[1633100253016,0.01375519,47152.0,47151.0,0.50916972]
[1633100253218,0.01375519,47152.0,47151.0,0.19108872]
[1633100253219,0.01504814,47152.0,47151.0,0.19108872]
[1633100253817,0.01375519,47152.0,47151.0,0.15808872]
[1633100254016,0.01375519,47152.0,47149.0,0.21206]
[1633100254219,0.01375519,47152.0,47150.0,0.218352]
[1633100254420,0.07933571,47151.0,47150.0,0.218352]
[1633100254619,0.07933571,47151.0,47150.0,0.213352]
[1633100254621,0.4902069,47151.0,47150.0,0.213352]
[1633100254816,0.4902069,47151.0,47148.0,0.008]
[1633100254819,0.54612713,47151.0,47148.0,0.008]
[1633100255022,0.00121676,47149.0,47148.0,0.008]
[1633100255223,0.00141068,47149.0,47148.0,0.008]
[1633100255821,0.00019392,47149.0,47148.0,0.008]
[1633100256618,0.00019392,47149.0,47148.0,0.226355]
[1633100256819,0.00019392,47149.0,47148.0,0.42978696]
[1633100256821,0.00026906,47149.0,47148.0,0.42978696]
[1633100257018,0.00026906,47149.0,47148.0,0.46278696]
[1633100257422,0.00026906,47149.0,47148.0,0.259355]
[1633100258222,0.0008,47155.0,47150.0,0.318121]
[1633100258423,0.0008,47155.0,47153.0,0.24876102]
[1633100258424,0.04116754,47155.0,47153.0,0.24876102]
[1633100258620,0.04116754,47155.0,47154.0,0.39572614]
[1633100259022,0.06816754,47155.0,47154.0,0.39572614]
[1633100259426,0.05816754,47155.0,47154.0,0.39572614]
[1633100259624,0.03116754,47155.0,47154.0,0.39572614]
[1633100260624,0.03116754,47155.0,47154.0,0.39566614]
[1633100261024,0.03116754,47155.0,47154.0,0.42566614]
[1633100261025,0.05916754,47155.0,47154.0,0.42566614]
[1633100261426,0.05916754,47155.0,47154.0,0.64886614]
[1633100261624,0.05916754,47155.0,47154.0,2.40067931]
[1633100261625,0.01592466,47155.0,47154.0,2.40067931]
[1633100261823,0.01592466,47155.0,47154.0,0.65014921]
[1633100262426,0.001,47156.0,47154.0,0.39694921]
[1633100262624,0.001,47156.0,47155.0,0.218355]
[1633100262827,0.001,47156.0,47155.0,0.868355]
[1633100263024,0.00108482,47156.0,47155.0,0.218355]
[1633100263425,0.00108482,47156.0,47155.0,0.44280378]
[1633100264026,0.00108482,47156.0,47155.0,0.21960378]
[1633100264625,0.00108482,47156.0,47155.0,1.19280378]
[1633100264827,0.00108482,47156.0,47155.0,0.21960378]
[1633100265029,0.00108482,47156.0,47155.0,0.25260378]
[1633100265225,0.00108482,47156.0,47155.0,0.251355]
[1633100266229,0.04380545,47156.0,47155.0,0.251355]
[1633100267127,0.02008482,47156.0,47155.0,0.054]
[1633100267528,0.22428482,47156.0,47145.0,0.212075]
[1633100267726,0.22428482,47156.0,47144.0,1.12452876]
[1633100267727,0.22428482,47156.0,47144.0,1.0468]
[1633100267729,0.00122754,47151.0,47144.0,1.0468]
[1633100268326,0.00122754,47151.0,47140.0,0.22419343]
[1633100269127,0.08164598,47151.0,47148.0,0.022]
[1633100269327,0.03822754,47151.0,47148.0,0.022]
[1633100269728,0.07454784,47151.0,47148.0,0.022]
[1633100269931,0.441544,47150.0,47148.0,0.022]
[1633100270129,0.441544,47150.0,47139.0,0.11168574]
[1633100270130,0.03911389,47149.0,47139.0,0.11168574]
[1633100270334,0.03822754,47151.0,47139.0,0.11168574]
[1633100270531,0.04416424,47151.0,47139.0,0.11168574]
[1633100270732,0.04402177,47140.0,47139.0,0.11168574]
[1633100271131,0.04402177,47140.0,47139.0,0.13678272]
[1633100272531,0.04402177,47140.0,47139.0,0.11178272]
[1633100273136,0.04402177,47140.0,47139.0,0.041]
[1633100273137,0.22442813,47140.0,47139.0,0.041]
[1633100273337,2.80578658,47140.0,47139.0,0.041]
[1633100273529,2.80578658,47140.0,47132.0,0.212201]
[1633100273531,2.58782501,47140.0,47132.0,0.212201]
[1633100273733,0.00120445,47133.0,47132.0,0.212201]
[1633100273931,0.21954845,47133.0,47132.0,0.212201]
[1633100274130,0.2904927,47133.0,47132.0,0.21228587]
[1633100274528,0.21954845,47133.0,47132.0,0.21228587]
[1633100274733,0.00120445,47133.0,47132.0,0.21228587]
[1633100275130,0.01720445,47133.0,47132.0,0.23828587]
[1633100275531,0.016,47133.0,47132.0,0.42828355]
[1633100275730,0.016,47133.0,47132.0,0.30229138]
[1633100275732,0.00539884,47133.0,47132.0,0.30229138]
[1633100276332,0.00128439,47135.0,47132.0,0.30229138]
[1633100276730,0.212198,47137.0,47134.0,0.40006062]
[1633100276929,0.212198,47137.0,47134.0,6.062e-05]
[1633100277130,0.02,47135.0,47134.0,6.062e-05]
[1633100277533,0.02120797,47135.0,47134.0,6.062e-05]
[1633100278135,0.02,47135.0,47134.0,6.062e-05]
[1633100278532,0.212198,47137.0,47134.0,0.08738777]
[1633100278731,0.212198,47137.0,47134.0,6.062e-05]
[1633100279131,0.240198,47137.0,47134.0,0.02606062]
[1633100279936,0.21962715,47136.0,47134.0,0.02606062]
[1633100280335,0.00128315,47136.0,47134.0,0.02606062]
[1633100280539,0.00128315,47136.0,47134.0,6.062e-05]
[1633100281140,0.02528315,47136.0,47134.0,0.03006062]
[1633100281737,0.00153504,47136.0,47134.0,0.03006062]
[1633100282395,0.00153504,47136.0,47135.0,0.22084864]
[1633100282594,0.212198,47137.0,47135.0,0.22137874]
[1633100282994,0.212198,47137.0,47135.0,0.22084864]
[1633100283193,0.212198,47137.0,47135.0,0.25584864]
[1633100283392,0.212198,47137.0,47135.0,0.7635885]
[1633100283992,0.212198,47137.0,47135.0,0.56402364]
[1633100284393,0.212198,47137.0,47135.0,0.56280975]
[1633100284395,0.03528519,47136.0,47135.0,0.56280975]
[1633100284592,0.03528519,47136.0,47135.0,0.52780975]
[1633100285193,0.03528519,47136.0,47135.0,0.56680975]
[1633100286194,0.212136,47147.0,47135.0,0.56680975]
[1633100286398,0.212136,47147.0,47138.0,0.07482631]
[1633100286399,0.0408538,47146.0,47138.0,0.07482631]
[1633100286595,0.212136,47147.0,47140.0,0.43940671]
[1633100286596,0.04632938,47145.0,47140.0,0.43940671]
[1633100286798,0.5,47149.0,47140.0,0.43940671]
[1633100286998,0.5,47149.0,47143.0,0.212096]
[1633100287200,0.028,47145.0,47143.0,0.212096]
[1633100288002,0.028,47145.0,47144.0,0.218377]
[1633100288403,6.357e-05,47144.0,47143.0,0.212096]
[1633100288804,6.357e-05,47144.0,47143.0,0.430473]
[1633100289006,6.357e-05,47144.0,47143.0,0.218377]
[1633100289207,0.02906357,47144.0,47143.0,0.03]
[1633100289609,0.03029258,47144.0,47143.0,0.03]
[1633100289808,0.13964348,47144.0,47143.0,0.03]
[1633100290010,0.35802048,47144.0,47143.0,0.03]
[1633100290407,0.35802048,47144.0,47143.0,0.01155967]
[1633100290606,0.35802048,47144.0,47135.0,0.22013]
[1633100290608,0.32779147,47144.0,47135.0,0.22013]
[1633100290807,0.32779147,47144.0,47136.0,0.218377]
[1633100290808,0.10941447,47144.0,47136.0,0.218377]
[1633100291207,0.14041447,47144.0,47136.0,0.218377]
[1633100291607,0.10941447,47144.0,47136.0,0.218377]
[1633100291806,0.212137,47140.0,47136.0,0.218377]
[1633100292207,0.04027711,47139.0,47136.0,0.218377]
[1633100292813,0.04027711,47139.0,47138.0,0.318192]
[1633100293012,0.04027711,47139.0,47138.0,0.536569]
[1633100293608,0.04027711,47139.0,47138.0,0.52596995]
[1633100293811,0.04027711,47139.0,47138.0,0.218377]
[1633100294010,0.04027711,47139.0,47136.0,0.034]
[1633100294013,0.26476222,47139.0,47136.0,0.034]
[1633100294213,0.00127409,47137.0,47136.0,0.034]
[1633100294609,0.00127409,47137.0,47135.0,0.008]
[1633100294813,0.07337486,47136.0,47135.0,0.008]
[1633100295012,0.11043736,47136.0,47135.0,0.008]
[1633100295214,0.1116442,47136.0,47135.0,0.008]
[1633100295414,0.3300212,47136.0,47135.0,0.008]
[1633100296814,0.0370625,47136.0,47135.0,0.008]
[1633100297215,0.0370625,47136.0,47135.0,0.035]
[1633100297216,0.029,47136.0,47135.0,0.035]
[1633100297616,0.06734957,47136.0,47135.0,0.035]
[1633100298614,0.06734957,47136.0,47135.0,0.008]
[1633100298615,0.03834957,47136.0,47135.0,0.008]
[1633100298815,0.212137,47140.0,47135.0,0.008]
[1633100299013,0.30248197,47139.0,47135.0,0.008]
[1633100299213,0.30248197,47139.0,47135.0,0.029]
[1633100299214,0.032,47136.0,47135.0,0.029]
[1633100299613,0.08111827,47136.0,47135.0,0.029]
[1633100299817,0.08111827,47136.0,47135.0,0.02093938]
[1633100299819,0.08233027,47136.0,47135.0,0.02093938]
[1633100300013,0.30070727,47136.0,47135.0,0.02093938]
[1633100300815,0.30070727,47136.0,47134.0,6.062e-05]
[1633100300816,0.26870727,47136.0,47134.0,6.062e-05]
[1633100301014,0.26870727,47136.0,47132.0,0.18994604]
[1633100301416,0.30370727,47136.0,47132.0,0.18994604]
[1633100301613,0.36181029,47133.0,47132.0,0.18994604]
[1633100301814,0.32562927,47133.0,47132.0,0.18994604]
[1633100303217,0.35762927,47133.0,47132.0,0.20194604]
[1633100303620,0.35887729,47133.0,47132.0,0.20194604]
[1633100303818,0.57725429,47133.0,47132.0,0.20194604]
[1633100304618,0.54525429,47133.0,47132.0,0.18994604]
[1633100305218,0.57925429,47133.0,47132.0,0.18994604]
[1633100305615,0.78610874,47133.0,47132.0,0.18994604]
[1633100306223,0.1715833,47132.0,47129.0,7.025e-05]
[1633100306419,0.1715833,47132.0,47124.0,0.1666]
[1633100306421,0.0012694,47130.0,47124.0,0.1666]
[1633100306620,0.00124483,47125.0,47124.0,0.1666]
[1633100306816,0.00124483,47125.0,47116.0,1.06586077]
[1633100307019,0.00124483,47125.0,47115.0,1.02562026]
[1633100307020,0.00124483,47125.0,47117.0,0.28341779]
[1633100307221,0.28661946,47121.0,47118.0,0.36311703]
[1633100307422,0.02924483,47125.0,47119.0,0.218377]
[1633100307620,0.212201,47122.0,47120.0,0.00016978]
[1633100307821,0.212201,47122.0,47121.0,0.218377]
[1633100308020,0.212201,47122.0,47121.0,0.21853465]
[1633100308227,0.212201,47122.0,47121.0,0.00015765]
[1633100308424,0.212201,47122.0,47110.0,4.63903462]
[1633100308425,0.212201,47122.0,47115.0,0.06578186]
[1633100308426,0.318415,47119.0,47115.0,0.06578186]
[1633100308624,0.318415,47119.0,47110.0,4.63775729]
[1633100308625,0.21355242,47115.0,47110.0,4.63775729]
[1633100308824,0.24007269,47114.0,47110.0,4.63775729]
[1633100309025,0.22915098,47114.0,47110.0,4.63775729]
[1633100309233,0.22915098,47114.0,47110.0,4.67575729]
[1633100309234,0.28780334,47113.0,47110.0,4.67575729]
[1633100309623,0.28780334,47113.0,47112.0,0.00010916]
[1633100309824,0.48541765,47113.0,47112.0,0.00010916]
[1633100310626,0.48541765,47113.0,47110.0,4.62726266]
[1633100310827,0.47272396,47113.0,47111.0,0.218377]
[1633100311026,0.19072861,47112.0,47111.0,0.218377]
[1633100312025,0.19491012,47112.0,47111.0,0.218377]
[1633100312627,0.19615818,47112.0,47111.0,0.218377]
[1633100312825,0.19615818,47112.0,47110.0,4.66726266]
[1633100312826,0.19615818,47112.0,47110.0,4.62726266]
[1633100313227,0.22715818,47112.0,47111.0,0.025]
[1633100313624,0.03224806,47112.0,47111.0,0.025]
[1633100314024,0.20346918,47112.0,47111.0,0.025]
[1633100314629,0.20346918,47112.0,47110.0,4.62726266]
[1633100314631,0.75184918,47112.0,47110.0,4.62726266]
[1633100314828,0.58062806,47112.0,47110.0,4.62726266]
[1633100315226,0.61162806,47112.0,47110.0,4.63426266]
[1633100316032,0.18937271,47111.0,47110.0,4.63426266]
[1633100316229,0.61162806,47112.0,47110.0,4.63426266]
[1633100316430,0.0012023,47111.0,47110.0,4.63426266]
[1633100316630,0.0012023,47111.0,47110.0,4.62365599]
[1633100316828,0.0012023,47111.0,47110.0,4.61665599]
[1633100317032,0.21284522,47111.0,47110.0,4.61665599]
[1633100317234,0.0012023,47111.0,47110.0,4.61665599]
[1633100317432,0.0302023,47111.0,47110.0,4.63365599]
[1633100318432,1.36758233,47111.0,47110.0,4.63365599]
[1633100318631,1.1552023,47111.0,47110.0,4.63365599]
[1633100318831,1.1262023,47111.0,47110.0,4.61665599]
[1633100319031,0.0012023,47111.0,47110.0,4.61665599]
[1633100319233,0.0012023,47111.0,47110.0,4.8222348]
[1633100319433,0.0012023,47111.0,47110.0,5.0576118]
[1633100319434,0.0292023,47111.0,47110.0,5.0576118]
[1633100319632,0.028,47111.0,47110.0,5.0576118]
[1633100319832,0.028,47111.0,47110.0,4.63365599]
[1633100319833,0.02929033,47111.0,47110.0,4.63365599]
[1633100320232,0.028,47111.0,47110.0,4.63365599]
[1633100320631,0.5188,47112.0,47110.0,4.61665599]
[1633100321029,0.5188,47112.0,47110.0,4.81484259]
[1633100321234,0.5188,47112.0,47110.0,4.61665599]
[1633100321430,0.5478,47112.0,47110.0,4.63765599]
[1633100322036,0.5478,47112.0,47111.0,0.00248803]
[1633100322038,0.47422001,47112.0,47111.0,0.00248803]
[1633100322237,0.47422001,47112.0,47111.0,0.22086503]
[1633100322432,0.47422001,47112.0,47111.0,0.44459513]
[1633100322433,0.029,47112.0,47111.0,0.44459513]
[1633100322634,0.029,47112.0,47111.0,0.43622765]
[1633100322836,0.212271,47115.0,47111.0,0.43870487]
[1633100323035,0.212271,47115.0,47112.0,0.09670387]
[1633100323237,0.212271,47115.0,47113.0,0.2189071]
[1633100323634,0.212271,47115.0,47114.0,0.0005301]
[1633100323900,0.212271,47115.0,47114.0,0.2189701]
[1633100325435,0.239271,47115.0,47114.0,0.2499701]
[1633100326041,0.29504741,47123.0,47114.0,0.2499701]
[1633100326042,0.15453105,47126.0,47118.0,0.212188]
[1633100326043,0.14854035,47126.0,47118.0,0.212188]
[1633100326237,0.1715833,47132.0,47131.0,0.01414807]
[1633100326439,0.1715833,47132.0,47131.0,0.01597372]
[1633100326635,0.1715833,47132.0,47131.0,0.23441372]
[1633100327038,0.1715833,47132.0,47131.0,1.30586495]
[1633100327440,0.1715833,47132.0,47131.0,0.91005995]
[1633100328434,0.1715833,47132.0,47131.0,0.90952985]
[1633100328638,0.1715833,47132.0,47131.0,0.65032985]
[1633100328846,0.1715833,47132.0,47131.0,0.23258807]
[1633100329040,0.1715833,47132.0,47131.0,0.01414807]
[1633100329435,0.1715833,47132.0,47131.0,0.05814807]
[1633100329839,0.1565833,47132.0,47131.0,0.05814807]
[1633100330639,0.1565833,47132.0,47131.0,0.01414807]
[1633100331439,0.1565833,47132.0,47131.0,0.05714807]
[1633100332908,0.1565833,47132.0,47131.0,0.01414807]
[1633100333443,0.1565833,47132.0,47131.0,0.04914807]
[1633100333644,0.1565833,47132.0,47131.0,0.03854817]
[1633100334647,0.1565833,47132.0,47131.0,0.00354817]
[1633100334845,0.1565833,47132.0,47131.0,0.22198817]
[1633100335443,0.1565833,47132.0,47131.0,0.26598817]
[1633100336245,0.1515833,47132.0,47131.0,1.11598817]
[1633100336447,0.1515833,47132.0,47131.0,0.26598817]
[1633100336847,0.1515833,47132.0,47131.0,0.22198817]
[1633100337446,0.1515833,47132.0,47131.0,0.26598817]
[1633100338052,0.1515833,47132.0,47131.0,0.04754817]